lending/lending_fUSD_20250122
["ID","MTS","AMOUNT","RATE_DAILY","PERIOD"]
[349984695,1737549049555,-500.0,0.00021076,2]
[349984696,1737549049565,-500.0,0.00021076,2]
[349984697,1737549049575,-511.51,0.00021076,2]
[349984698,1737549049584,-500.0,0.00021076,2]
[349984699,1737549049593,-500.0,0.00021076,2]
[349984700,1737549049604,-594.47,0.00021076,2]
[349984701,1737549049615,-500.0,0.00021076,2]
[349984702,1737549049624,-500.0,0.00021076,2]
[349984703,1737549049634,-534.03,0.00021076,2]
[349984704,1737549049643,-690.93,0.00021076,2]
[349984705,1737549049653,-500.0,0.00021076,2]
[349984706,1737549049663,-500.0,0.00021076,2]
[349984707,1737549049673,-500.0,0.00021076,2]
[349984708,1737549049682,-749.51,0.00021076,2]
[349984709,1737549049693,-546.05,0.00021076,2]
[349984710,1737549049702,-741.19,0.00021076,2]
[349984711,1737549049712,-600.68,0.00021076,2]
[349984712,1737549049722,-500.0,0.00021076,2]
[349984713,1737549049731,-500.0,0.00021076,2]
[349984714,1737549049746,-549.78,0.00021076,2]
[349984715,1737549049755,-367.19,0.00021076,2]
[349984716,1737549049764,-500.0,0.000211,2]
[349984717,1737549049774,-150.06,0.00021106,2]
[349984718,1737549049783,-213.03368819,0.00021173,2]
[349984719,1737549049793,-982.04,0.00021178,2]
[349984720,1737549049802,-150.0,0.00021178,2]
[349984721,1737549049812,-437.79,0.00021178,2]
[349984722,1737549049822,-298.05,0.00021178,2]
[349984723,1737549049832,-150.0,0.00021178,2]
[349984724,1737549049841,-1862.0,0.00021205,2]
[349984725,1737549049851,-906.0,0.00021205,2]
[349984726,1737549049860,-1260.0,0.00021205,2]
[349984727,1737549049870,-781.0,0.00021205,2]
[349984728,1737549049879,-1105.0,0.00021205,2]
[349984729,1737549049888,-3903.0,0.00021205,2]
[349984730,1737549049898,-150.0,0.00021205,2]
[349984731,1737549049907,-638.0,0.00021205,2]
[349984732,1737549049916,-200.0,0.00021219,2]
[349984733,1737549049926,-1335.98476408,0.00021226,2]
[349984734,1737549049935,-333.39474199,0.00021227,2]
[349984735,1737549049944,-500.0,0.00021248,2]
[349984736,1737549049953,-500.0,0.00021248,2]
[349984737,1737549049963,-500.0,0.00021248,2]
[349984738,1737549049972,-500.0,0.00021248,2]
[349984739,1737549049981,-500.0,0.00021248,2]
[349984740,1737549049990,-500.0,0.00021248,2]
[349984741,1737549049999,-500.0,0.00021248,2]
[349984742,1737549050008,-500.0,0.00021248,2]
[349984743,1737549050017,-500.0,0.00021248,2]
[349984744,1737549050026,-500.0,0.00021248,2]
[349984745,1737549050036,-500.0,0.00021248,2]
[349984746,1737549050046,-500.0,0.00021248,2]
[349984747,1737549050055,-595.67,0.00021248,2]
[349984748,1737549050064,-910.2,0.00021248,2]
[349984749,1737549050078,-1176.07,0.00021248,2]
[349984750,1737549050087,-1124.32,0.00021248,2]
[349984751,1737549050096,-2693.46,0.00021248,2]
[349984752,1737549050105,-500.0,0.00021248,2]
[349984753,1737549050115,-5144.43,0.00021248,2]
[349984754,1737549050124,-727.29,0.00021248,2]
[349984755,1737549050133,-612.69,0.00021248,2]
[349984756,1737549050144,-1727.17,0.00021248,2]
[349984757,1737549050153,-500.0,0.00021248,2]
[349984758,1737549050163,-716.33,0.00021248,2]
[349984759,1737549050173,-1059.07,0.00021248,2]
[349984760,1737549050182,-1114.06,0.00021248,2]
[349984761,1737549050193,-500.0,0.00021248,2]
[349984762,1737549050202,-500.0,0.00021248,2]
[349984763,1737549050212,-1000.0,0.00021248,2]
[349984764,1737549050222,-634.21,0.00021248,2]
[349984765,1737549050231,-500.0,0.00021248,2]
[349984766,1737549050241,-1624.3,0.00021248,2]
[349984767,1737549050250,-500.0,0.00021249,2]
[349984768,1737549050260,-500.0,0.00021249,2]
[349984769,1737549050270,-250.0,0.00021258,2]
[349984770,1737549050279,-556.0,0.0002126,2]
[349984771,1737549050289,-500.0,0.00021349,2]
[349984772,1737549050300,-385.78310245,0.00021349,2]
[349984773,1737549050521,-130.83689755,0.00021349,2]
[349984774,1737549050531,-500.0,0.00021349,2]
[349984775,1737549050540,-500.0,0.00021349,2]
[349984776,1737549050550,-500.0,0.00021349,2]
[349984777,1737549050559,-459.78975448,0.00021349,2]
[349984778,1737549050642,-200.43,0.0001973,2]
[349984779,1737549050653,-148.39372796,0.00020426,2]
[349984780,1737549050759,-24.90077381,0.00020426,2]
[349984781,1737549050770,-326.70549823,0.00020426,2]
[349984782,1737549050780,-500.0,0.000207,2]
[349984783,1737549050789,-200.43,0.00020716,2]
[349984784,1737549050798,-500.0,0.00020974,2]
[349984785,1737549050807,-500.0,0.00021248,2]
[349984786,1737549050817,-70.23024552,0.00021349,2]
[349984787,1737549050826,-622.68,0.00021349,2]
[349984788,1737549050835,-444.7319705,0.00021349,2]
[349984789,1737549050845,-465.621511,0.00021349,2]
[349984790,1737549050854,-500.0,0.00021349,2]
[349984791,1737549050864,-500.0,0.00021349,2]
[349984792,1737549050874,-661.91,0.00021349,2]
[349984793,1737549050883,-759.510306,0.00021349,2]
[349984794,1737549050893,-777.07,0.00021349,2]
[349984795,1737549050902,-500.0,0.00021349,2]
[349984796,1737549050912,-500.0,0.00021349,2]
[349984797,1737549050921,-500.0,0.00021349,2]
[349984798,1737549050930,-500.0,0.00021349,2]
[349984799,1737549050939,-682.69,0.00021349,2]
[349984800,1737549050949,-715.54,0.00021349,2]
[349984801,1737549050958,-569.24,0.00021349,2]
[349984802,1737549050967,-500.0,0.00021349,2]
[349984803,1737549050977,-500.0,0.00021349,2]
[349984804,1737549050986,-500.0,0.00021349,2]
[349984805,1737549050996,-500.0,0.00021349,2]
[349984806,1737549051005,-500.0,0.00021349,2]
[349984807,1737549051014,-500.0,0.00021349,2]
[349984808,1737549051023,-500.0,0.00021349,2]
[349984809,1737549051033,-500.0,0.00021349,2]
[349984810,1737549051043,-500.0,0.00021349,2]
[349984811,1737549051052,-500.0,0.00021349,2]
[349984812,1737549051062,-500.0,0.00021349,2]
[349984813,1737549051075,-500.0,0.00021349,2]
[349984814,1737549051085,-500.0,0.00021349,2]
[349984815,1737549051094,-580.08,0.00021349,2]
[349984816,1737549051103,-1034.13,0.00021349,2]
[349984817,1737549051115,-1918.8,0.00021349,2]
[349984818,1737549051124,-1510.81,0.00021349,2]
[349984819,1737549051133,-1016.66,0.00021349,2]
[349984820,1737549051143,-971.81,0.00021349,2]
[349984821,1737549051153,-500.0,0.00021349,2]
[349984822,1737549051162,-963.7,0.00021349,2]
[349984823,1737549051172,-1351.87,0.00021349,2]
[349984824,1737549051181,-500.0,0.00021349,2]
[349984825,1737549051191,-519.8,0.00021349,2]
[349984826,1737549051200,-726.58,0.00021349,2]
[349984827,1737549051209,-756.68,0.00021349,2]
[349984828,1737549051219,-1361.76,0.00021349,2]
[349984829,1737549051228,-1110.66,0.00021349,2]
[349984830,1737549051237,-652.9,0.00021349,2]
[349984831,1737549051247,-769.05,0.00021349,2]
[349984832,1737549051255,-555.35,0.00021349,2]
[349984833,1737549051264,-1066.49,0.00021349,2]
[349984834,1737549051273,-795.04,0.00021349,2]
[349984835,1737549051283,-2707.27,0.00021349,2]
[349984836,1737549051292,-500.0,0.00021349,2]
[349984837,1737549051301,-1689.92,0.00021349,2]
[349984838,1737549051310,-1448.38,0.00021349,2]
[349984839,1737549051320,-500.0,0.00021349,2]
[349984840,1737549051330,-889.69,0.00021349,2]
[349984841,1737549051339,-682.43,0.00021349,2]
[349984842,1737549051348,-977.14,0.00021349,2]
[349984843,1737549051357,-500.0,0.00021349,2]
[349984844,1737549051367,-775.54,0.00021349,2]
[349984845,1737549051376,-574.34,0.00021349,2]
[349984846,1737549051385,-1681.08,0.00021349,2]
[349984847,1737549051395,-550.22,0.00021349,2]
[349984848,1737549051404,-1003.72,0.00021349,2]
[349984849,1737549051413,-1831.25,0.00021349,2]
[349984850,1737549051422,-319.22501676,0.00021349,2]
[349984851,1737549051431,-1016.3,0.00021349,2]
[349984852,1737549051440,-1242.63,0.00021349,2]
[349984853,1737549051449,-637.13,0.00021349,2]
[349984854,1737549051459,-895.54,0.00021349,2]
[349984855,1737549051468,-500.0,0.00021349,2]
[349984856,1737549051477,-500.0,0.00021349,2]
[349984857,1737549051628,-4356.71,0.00021349,2]
[349984858,1737549051638,-2195.16,0.00021349,2]
[349984859,1737549051647,-2686.25,0.00021349,2]
[349984860,1737549051656,-500.0,0.00021349,2]
[349984861,1737549051665,-919.29,0.00021349,2]
[349984862,1737549051675,-1514.78,0.00021349,2]
[349984863,1737549051684,-500.0,0.00021349,2]
[349984864,1737549051694,-2829.02,0.00021349,2]
[349984865,1737549051703,-840.97,0.00021349,2]
[349984866,1737549051713,-500.0,0.00021349,2]
[349984867,1737549051722,-500.0,0.00021349,2]
[349984868,1737549051732,-1467.47,0.00021349,2]
[349984869,1737549051741,-974.6,0.00021349,2]
[349984870,1737549051751,-1423.79,0.00021349,2]
[349984871,1737549051761,-500.0,0.00021349,2]
[349984872,1737549051770,-1034.24,0.00021349,2]
[349984873,1737549051779,-1012.59,0.00021349,2]
[349984874,1737549051788,-918.95,0.00021349,2]
[349984875,1737549051798,-500.0,0.00021349,2]
[349984876,1737549051807,-880.71,0.00021349,2]
[349984877,1737549051817,-500.0,0.00021349,2]
[349984878,1737549051827,-556.06,0.00021349,2]
[349984879,1737549051836,-3001.3,0.00021349,2]
[349984880,1737549051846,-500.0,0.00021349,2]
[349984881,1737549051856,-500.0,0.00021349,2]
[349984882,1737549051865,-1480.58,0.00021349,2]
[349984883,1737549051874,-581.53,0.00021349,2]
[349984884,1737549051884,-1089.01,0.00021349,2]
[349984885,1737549051894,-2620.44,0.00021349,2]
[349984886,1737549051903,-1211.77,0.00021349,2]
[349984887,1737549051913,-802.29,0.00021349,2]
[349984888,1737549051923,-443.52577558,0.00021349,2]
[349984889,1737549051932,-500.0,0.00021349,2]
[349984890,1737549051941,-500.0,0.00021349,2]
[349984891,1737549051951,-500.0,0.00021349,2]
[349984892,1737549051961,-556.36,0.00021349,2]
[349984893,1737549051970,-500.0,0.00021349,2]
[349984894,1737549051980,-1228.47,0.00021349,2]
[349984895,1737549051990,-500.0,0.00021349,2]
[349984896,1737549051999,-716.78,0.00021349,2]
[349984897,1737549052008,-1543.85,0.00021349,2]
[349984898,1737549052018,-500.0,0.00021349,2]
[349984899,1737549052027,-500.0,0.00021349,2]
[349984900,1737549052036,-919.14,0.00021349,2]
[349984901,1737549052045,-2698.41,0.00021349,2]
[349984902,1737549052055,-500.0,0.00021349,2]
[349984903,1737549052064,-981.74,0.00021349,2]
[349984904,1737549052076,-500.0,0.00021349,2]
[349984905,1737549052086,-604.82,0.0002135,2]
[349984906,1737549052095,-500.0,0.0002135,2]
[349984907,1737549052104,-500.0,0.0002135,2]
[349984908,1737549052114,-548.89,0.0002135,2]
[349984909,1737549052124,-500.0,0.0002135,2]
[349984910,1737549052133,-500.0,0.0002135,2]
[349984911,1737549052143,-500.0,0.0002135,2]
[349984912,1737549052153,-500.0,0.0002135,2]
[349984913,1737549052163,-500.0,0.0002135,2]
[349984914,1737549052172,-500.0,0.0002135,2]
[349984915,1737549052181,-500.0,0.0002135,2]
[349984916,1737549052191,-552.08,0.0002135,2]
[349984917,1737549052200,-614.82,0.0002135,2]
[349984918,1737549052209,-543.85,0.0002135,2]
[349984919,1737549052218,-500.0,0.0002135,2]
[349984920,1737549052228,-500.0,0.0002135,2]
[349984921,1737549052238,-616.84,0.0002135,2]
[349984922,1737549052248,-500.0,0.0002135,2]
[349984923,1737549052258,-500.0,0.0002135,2]
[349984924,1737549052267,-639.14,0.0002135,2]
[349984925,1737549052277,-613.53,0.0002135,2]
[349984926,1737549052286,-500.0,0.0002135,2]
[349984927,1737549052295,-500.0,0.0002135,2]
[349984928,1737549052305,-500.0,0.0002135,2]
[349984929,1737549052314,-511.51,0.0002135,2]
[349984930,1737549052323,-500.0,0.0002135,2]
[349984931,1737549052332,-594.47,0.0002135,2]
[349984932,1737549052342,-500.0,0.0002135,2]
[349984933,1737549052351,-500.0,0.0002135,2]
[349984934,1737549052360,-534.03,0.0002135,2]
[349984935,1737549052370,-690.93,0.0002135,2]
[349984936,1737549052380,-500.0,0.0002135,2]
[349984937,1737549052389,-500.0,0.0002135,2]
[349984938,1737549052399,-500.0,0.0002135,2]
[349984939,1737549052407,-749.51,0.0002135,2]
[349984940,1737549052418,-546.05,0.0002135,2]
[349984941,1737549052427,-741.19,0.0002135,2]
[349984942,1737549052436,-600.68,0.0002135,2]
[349984943,1737549052446,-500.0,0.0002135,2]
[349984944,1737549052455,-633.57995597,0.0002135,2]
[349984945,1737549052464,-549.78,0.0002135,2]
[349984946,1737549052473,-213.03368819,0.00021355,2]
[349984947,1737549052482,-999.0,0.0002141,2]
[349984948,1737549052492,-500.0,0.0002141,2]
[349984949,1737549052501,-568.58,0.00021411,7]
[349984950,1737549052511,-568.58,0.00021411,7]
[349984951,1737549052520,-568.58,0.00021411,7]
[349984952,1737549052529,-568.58,0.00021411,7]
[349984953,1737549052539,-1335.98476408,0.00021451,2]
[349984954,1737549052548,-333.39474199,0.00021451,2]
[349984955,1737549052557,-152.0,0.00021483,3]
[349984956,1737549052567,-500.0,0.00021522,2]
[349984957,1737549052576,-500.0,0.00021522,2]
[349984958,1737549052586,-500.0,0.00021522,2]
[349984959,1737549052595,-500.0,0.00021522,2]
[349984960,1737549052605,-500.0,0.00021522,2]
[349984961,1737549052615,-500.0,0.00021522,2]
[349984962,1737549052624,-500.0,0.00021522,2]
[349984963,1737549052634,-242.75,0.00021522,2]
[349984964,1737549052644,-500.0,0.00021522,2]
[349984965,1737549052653,-500.0,0.00021522,2]
[349984966,1737549052663,-500.0,0.00021522,2]
[349984967,1737549052672,-500.0,0.00021522,2]
[349984968,1737549052682,-595.67,0.00021522,2]
[349984969,1737549052691,-910.2,0.00021522,2]
[349984970,1737549052701,-1176.07,0.00021522,2]
[349984971,1737549052711,-1124.32,0.00021522,2]
[349984972,1737549052720,-2693.46,0.00021522,2]
[349984973,1737549052730,-500.0,0.00021522,2]
[349984974,1737549052739,-5144.43,0.00021522,2]
[349984975,1737549052748,-727.29,0.00021522,2]
[349984976,1737549052758,-612.69,0.00021522,2]
[349984977,1737549052767,-1727.17,0.00021522,2]
[349984978,1737549052777,-500.0,0.00021522,2]
[349984979,1737549052787,-716.33,0.00021522,2]
[349984980,1737549052796,-1059.07,0.00021522,2]
[349984981,1737549052806,-1114.06,0.00021522,2]
[349984982,1737549052815,-500.0,0.00021522,2]
[349984983,1737549052824,-500.0,0.00021522,2]
[349984984,1737549052834,-1000.0,0.00021522,2]
[349984985,1737549052843,-634.21,0.00021522,2]
[349984986,1737549052852,-500.0,0.00021522,2]
[349984987,1737549052862,-1624.3,0.00021522,2]
[349984988,1737549052872,-500.0,0.00021523,2]
[349984989,1737549052881,-500.0,0.00021523,2]
[349984990,1737549052890,-1000.0,0.00021526,2]
[349984991,1737549052900,-948.0,0.00021532,2]
[349984992,1737549052909,-213.03368819,0.00021536,2]
[349984993,1737549052919,-331.8913108,0.0002156,2]
[349984994,1737549052928,-500.0,0.00021623,2]
[349984995,1737549052937,-516.62,0.00021623,2]
[349984996,1737549052947,-500.0,0.00021623,2]
[349984997,1737549052956,-500.0,0.00021623,2]
[349984998,1737549052965,-500.0,0.00021623,2]
[349984999,1737549052974,-530.02,0.00021623,2]
[349985000,1737549052983,-622.68,0.00021623,2]
[349985001,1737549052993,-465.621511,0.00021623,2]
[349985002,1737549053002,-500.0,0.00021623,2]
[349985003,1737549053012,-500.0,0.00021623,2]
[349985004,1737549053021,-661.91,0.00021623,2]
[349985005,1737549053030,-759.510306,0.00021623,2]
[349985006,1737549053040,-777.07,0.00021623,2]
[349985007,1737549053049,-500.0,0.00021623,2]
[349985008,1737549053058,-500.0,0.00021623,2]
[349985009,1737549053069,-500.0,0.00021623,2]
[349985010,1737549053079,-500.0,0.00021623,2]
[349985011,1737549053089,-682.69,0.00021623,2]
[349985012,1737549053099,-715.54,0.00021623,2]
[349985013,1737549053109,-569.24,0.00021623,2]
[349985014,1737549053119,-500.0,0.00021623,2]
[349985015,1737549053129,-500.0,0.00021623,2]
[349985016,1737549053139,-500.0,0.00021623,2]
[349985017,1737549053150,-500.0,0.00021623,2]
[349985018,1737549053159,-500.0,0.00021623,2]
[349985019,1737549053169,-500.0,0.00021623,2]
[349985020,1737549053178,-500.0,0.00021623,2]
[349985021,1737549053188,-500.0,0.00021623,2]
[349985022,1737549053197,-500.0,0.00021623,2]
[349985023,1737549053206,-500.0,0.00021623,2]
[349985024,1737549053215,-500.0,0.00021623,2]
[349985025,1737549053225,-500.0,0.00021623,2]
[349985026,1737549053235,-500.0,0.00021623,2]
[349985027,1737549053244,-580.08,0.00021623,2]
[349985028,1737549053253,-1034.13,0.00021623,2]
[349985029,1737549053262,-1918.8,0.00021623,2]
[349985030,1737549053271,-1510.81,0.00021623,2]
[349985031,1737549053281,-1016.66,0.00021623,2]
[349985032,1737549053290,-971.81,0.00021623,2]
[349985033,1737549053299,-963.7,0.00021623,2]
[349985034,1737549053308,-500.0,0.00021623,2]
[349985035,1737549053318,-1351.87,0.00021623,2]
[349985036,1737549053328,-500.0,0.00021623,2]
[349985037,1737549053338,-519.8,0.00021623,2]
[349985038,1737549053347,-726.58,0.00021623,2]
[349985039,1737549053355,-756.68,0.00021623,2]
[349985040,1737549053364,-1361.76,0.00021623,2]
[349985041,1737549053374,-1110.66,0.00021623,2]
[349985042,1737549053384,-652.9,0.00021623,2]
[349985043,1737549053393,-769.05,0.00021623,2]
[349985044,1737549053402,-555.35,0.00021623,2]
[349985045,1737549053411,-1066.49,0.00021623,2]
[349985046,1737549053421,-795.04,0.00021623,2]
[349985047,1737549053432,-2707.27,0.00021623,2]
[349985048,1737549053441,-500.0,0.00021623,2]
[349985049,1737549053450,-1689.92,0.00021623,2]
[349985050,1737549053460,-1448.38,0.00021623,2]
[349985051,1737549053470,-889.69,0.00021623,2]
[349985052,1737549053482,-500.0,0.00021623,2]
[349985053,1737549053491,-682.43,0.00021623,2]
[349985054,1737549053500,-977.14,0.00021623,2]
[349985055,1737549053510,-500.0,0.00021623,2]
[349985056,1737549053519,-775.54,0.00021623,2]
[349985057,1737549053528,-574.34,0.00021623,2]
[349985058,1737549053537,-1681.08,0.00021623,2]
[349985059,1737549053546,-550.22,0.00021623,2]
[349985060,1737549053555,-1003.72,0.00021623,2]
[349985061,1737549053564,-1831.25,0.00021623,2]
[349985062,1737549053574,-1016.3,0.00021623,2]
[349985063,1737549053584,-1242.63,0.00021623,2]
[349985064,1737549053594,-637.13,0.00021623,2]
[349985065,1737549053603,-895.54,0.00021623,2]
[349985066,1737549053613,-500.0,0.00021623,2]
[349985067,1737549053623,-500.0,0.00021623,2]
[349985068,1737549053632,-4356.71,0.00021623,2]
[349985069,1737549053642,-2195.16,0.00021623,2]
[349985070,1737549053651,-2686.25,0.00021623,2]
[349985071,1737549053661,-500.0,0.00021623,2]
[349985072,1737549053671,-919.29,0.00021623,2]
[349985073,1737549053681,-1514.78,0.00021623,2]
[349985074,1737549053691,-500.0,0.00021623,2]
[349985075,1737549053701,-2829.02,0.00021623,2]
[349985076,1737549053710,-840.97,0.00021623,2]
[349985077,1737549053720,-500.0,0.00021623,2]
[349985078,1737549053729,-500.0,0.00021623,2]
[349985079,1737549053740,-1467.47,0.00021623,2]
[349985080,1737549053751,-974.6,0.00021623,2]
[349985081,1737549053761,-1423.79,0.00021623,2]
[349985082,1737549053771,-500.0,0.00021623,2]
[349985083,1737549053781,-1034.24,0.00021623,2]
[349985084,1737549053790,-1012.59,0.00021623,2]
[349985085,1737549053800,-918.95,0.00021623,2]
[349985086,1737549053810,-500.0,0.00021623,2]
[349985087,1737549053820,-880.71,0.00021623,2]
[349985088,1737549053830,-500.0,0.00021623,2]
[349985089,1737549053840,-556.06,0.00021623,2]
[349985090,1737549053849,-3001.3,0.00021623,2]
[349985091,1737549053859,-500.0,0.00021623,2]
[349985092,1737549053868,-500.0,0.00021623,2]
[349985093,1737549053877,-1480.58,0.00021623,2]
[349985094,1737549053886,-581.53,0.00021623,2]
[349985095,1737549053896,-1089.01,0.00021623,2]
[349985096,1737549053906,-2620.44,0.00021623,2]
[349985097,1737549053915,-1211.77,0.00021623,2]
[349985098,1737549053924,-802.29,0.00021623,2]
[349985099,1737549053934,-500.0,0.00021623,2]
[349985100,1737549053944,-500.0,0.00021623,2]
[349985101,1737549053954,-500.0,0.00021623,2]
[349985102,1737549053963,-556.36,0.00021623,2]
[349985103,1737549053973,-500.0,0.00021623,2]
[349985104,1737549053982,-1228.47,0.00021623,2]
[349985105,1737549053991,-500.0,0.00021623,2]
[349985106,1737549054001,-716.78,0.00021623,2]
[349985107,1737549054011,-1543.85,0.00021623,2]
[349985108,1737549054020,-500.0,0.00021623,2]
[349985109,1737549054030,-500.0,0.00021623,2]
[349985110,1737549054039,-919.14,0.00021623,2]
[349985111,1737549054050,-2698.41,0.00021623,2]
[349985112,1737549054059,-500.0,0.00021623,2]
[349985113,1737549054071,-981.74,0.00021623,2]
[349985114,1737549054083,-500.0,0.00021623,2]
[349985115,1737549054092,-604.82,0.00021624,2]
[349985116,1737549054102,-500.0,0.00021624,2]
[349985117,1737549054111,-500.0,0.00021624,2]
[349985118,1737549054121,-548.89,0.00021624,2]
[349985119,1737549054256,-500.0,0.00021624,2]
[349985120,1737549054266,-500.0,0.00021624,2]
[349985121,1737549054275,-500.0,0.00021624,2]
[349985122,1737549054285,-500.0,0.00021624,2]
[349985123,1737549054293,-500.0,0.00021624,2]
[349985124,1737549054303,-500.0,0.00021624,2]
[349985125,1737549054312,-500.0,0.00021624,2]
[349985126,1737549054321,-552.08,0.00021624,2]
[349985127,1737549054330,-614.82,0.00021624,2]
[349985128,1737549054339,-543.85,0.00021624,2]
[349985129,1737549054348,-500.0,0.00021624,2]
[349985130,1737549054357,-189.51404149,0.00021624,2]
[349985131,1737549054367,-616.84,0.00021624,2]
[349985132,1737549054376,-500.0,0.00021624,2]
[349985133,1737549054385,-500.0,0.00021624,2]
[349985134,1737549054394,-639.14,0.00021624,2]
[349985135,1737549054403,-613.53,0.00021624,2]
[349985136,1737549054413,-500.0,0.00021624,2]
[349985137,1737549054422,-500.0,0.00021624,2]
[349985138,1737549054432,-630.19336777,0.00021624,2]
[349985139,1737549054441,-511.51,0.00021624,2]
[349985140,1737549054451,-500.0,0.00021624,2]
[349985141,1737549054460,-594.47,0.00021624,2]
[349985142,1737549054469,-204.08314794,0.00021624,2]
[349985143,1737549054478,-500.0,0.00021624,2]
[349985144,1737549054487,-534.03,0.00021624,2]
[349985145,1737549054496,-690.93,0.00021624,2]
[349985146,1737549054505,-500.0,0.00021624,2]
[349985147,1737549054515,-500.0,0.00021624,2]
[349985148,1737549054525,-500.0,0.00021624,2]
[349985149,1737549054534,-749.51,0.00021624,2]
[349985150,1737549054545,-546.05,0.00021624,2]
[349985151,1737549054554,-741.19,0.00021624,2]
[349985152,1737549054563,-600.68,0.00021624,2]
[349985153,1737549054572,-500.0,0.00021624,2]
[349985154,1737549054582,-549.78,0.00021624,2]
[349985155,1737549054591,-1000.0,0.00021648,2]
[349985156,1737549054601,-4421.92209439,0.00021666,2]
[349985157,1737549054611,-1335.98476408,0.00021675,2]
[349985158,1737549054621,-333.39474199,0.00021676,2]
[349985159,1737549054630,-568.58,0.00021685,7]
[349985160,1737549054639,-568.58,0.00021685,7]
[349985161,1737549054648,-8693.50282526,0.000217,2]
[349985162,1737549054657,-213.03368819,0.00021718,3]
[349985163,1737549054667,-1000.0,0.00021731,2]
[349985164,1737549054676,-1000.0,0.00021731,2]
[349985165,1737549054685,-150.0,0.00021731,2]
[349985166,1737549054694,-150.0,0.00021734,2]
[349985167,1737549054704,-150.0,0.0002174,2]
[349985168,1737549054713,-150.0,0.0002175,2]
[349985169,1737549054722,-569.3,0.00021772,2]
[349985170,1737549054732,-176.28,0.00021775,2]
[349985171,1737549054741,-500.0,0.0002178,2]
[349985172,1737549054751,-500.0,0.0002178,2]
[349985173,1737549054760,-500.0,0.0002178,2]
[349985174,1737549054770,-500.0,0.0002178,2]
[349985175,1737549054779,-500.0,0.0002178,2]
[349985176,1737549054789,-500.0,0.0002178,2]
[349985177,1737549054798,-500.0,0.0002178,2]
[349985178,1737549054809,-5173.54518264,0.0002178,5]
[349985179,1737549054819,-3000.0,0.0002178,2]
[349985180,1737549054828,-150.0,0.00021789,2]
[349985181,1737549054838,-500.0,0.00021796,2]
[349985182,1737549054847,-500.0,0.00021796,2]
[349985183,1737549054856,-500.0,0.00021796,2]
[349985184,1737549054865,-500.0,0.00021796,2]
[349985185,1737549054874,-500.0,0.00021796,2]
[349985186,1737549054884,-500.0,0.00021796,2]
[349985187,1737549054893,-500.0,0.00021796,2]
[349985188,1737549054902,-500.0,0.00021796,2]
[349985189,1737549054911,-500.0,0.00021796,2]
[349985190,1737549054921,-500.0,0.00021796,2]
[349985191,1737549054930,-500.0,0.00021796,2]
[349985192,1737549054940,-595.67,0.00021796,2]
[349985193,1737549054950,-910.2,0.00021796,2]
[349985194,1737549054959,-1176.07,0.00021796,2]